Workbook

Sheet Лист1
A2: Меню для общеобразовательных организаций МР Шаранский район РБ на весенне-летний период. 2025-2026 учебный год
A4: День: понедельник
A5: Неделя: 1
A6: Наименование блюда | B6: Выход блюда, г | D6: Масса брутто | F6: Масса нетто или полуфабриката | H6: Пищевые вещества | N6: Энергетическая ценность, ккал | P6: № рецептуры
H7: Белки | J7: Жиры | L7: Углеводы
B8: 7-11 лет | C8: 11-18 лет | D8: 7-11 лет | E8: 11-18 лет | F8: 7-11 лет | G8: 11-18 лет | H8: 7-11 лет | I8: 11-18 лет | J8: 7-11 лет | K8: 11-18 лет | L8: 7-11 лет | M8: 11-18 лет | N8: 7-11 лет | O8: 11-18 лет
A9: Завтрак
A10: Рыба, тушенная с овощами (филе минтая) | B10: 50/50 | C10: 50/50 | H10: 9.84 | I10: 9.84 | J10: 5.62 | K10: 5.62 | L10: 4.84 | M10: 4.84 | N10: 119.99 | O10: 109.35 | P10: 78
A11: Минтай (филе) | D11: 64 | E11: 64 | F11: 58 | G11: 58
A12: Лук репчатый | D12: 10 | E12: 10 | F12: 8 | G12: 8
A13: Морковь | D13: 29 | E13: 29 | F13: 22 | G13: 22
A14: Томат-паста | D14: 4 | E14: 4 | F14: 4 | G14: 4
A15: Масло растительное | D15: 5 | E15: 5 | F15: 5 | G15: 5
A16: Кислота лимонная | D16: 0.2 | E16: 0.2 | F16: 0.2 | G16: 0.2
A17: Сахар | D17: 2 | E17: 2 | F17: 2 | G17: 2
A18: Вода | D18: 19 | E18: 19 | F18: 19 | G18: 19
A19: Рис припущенный | B19: 150 | C19: 210 | H19: 3.54 | I19: 4.97 | J19: 5.26 | K19: 7.33 | L19: 25.52 | M19: 35.82 | N19: 223.5 | O19: 313.25 | P19: 420
A20: Крупа рисовая | D20: 52 | E20: 73 | F20: 52 | G20: 79
A21: Вода | D21: 109 | E21: 152 | F21: 109 | G21: 152
A22: Масло сливочное 72,5% | D22: 6.75 | E22: 9.4 | F22: 6.75 | G22: 9.4
A23: Чай витаминизированный | B23: 200 | C23: 200 | L23: 9.7 | M23: 9.7 | N23: 39 | O23: 39 | P23: 282.11
A24: Чай | D24: 0.4 | E24: 0.4 | F24: 0.4 | G24: 0.4
A25: Смесь "Витошка" | D25: 10 | E25: 10 | F25: 10 | G25: 10
A26: Вода | D26: 190 | E26: 190 | F26: 190 | G26: 190
A27: Хлеб пшеничный обогащенный витаминами для детского питания | B27: 50 | C27: 50 | H27: 4.05 | I27: 4.05 | J27: 0.5 | K27: 0.5 | L27: 24.4 | M27: 24.4 | N27: 121 | O27: 121 | P27: 1
A28: Итого за завтрак | B28: 450/50 | C28: 510/50 | H28: =SUM(H10:H27) -> 17.43 | I28: 18.86 | J28: 11.38 | K28: 13.45 | L28: 64.46 | M28: 74.76 | N28: 503.49 | O28: 582.6
A29: Обед
A30: Салат из свеклы с растительным маслом | B30: 60 | C30: 60 | H30: 0.99 | I30: 0.99 | J30: 5 | K30: 5 | L30: 5.94 | M30: 5.94 | N30: 71.9 | O30: 71.9 | P30: 66
A31: Свекла отварная очищенная | D31: 75 | E31: 75 | F31: 55 | G31: 55
A32: Соль йодированная | D32: 1 | E32: 1 | F32: 1 | G32: 1
A33: Масло растительное | D33: 5 | E33: 5 | F33: 5 | G33: 5
A34: Щи из свежей капусты со сметаной | B34: 200/10 | C34: 250/10 | H34: 1.68 | I34: 2.15 | J34: 4.86 | K34: 6.7 | L34: 7.2 | M34: 8.93 | N34: 80.73 | O34: 100.15 | P34: 52
A35: капуста белокочанная | D35: 50 | E35: 63 | F35: 40 | G35: 50
A36: Картофель молодой | D36: 36 | E36: 50 | F36: 26 | G36: 30
A37: Морковь | D37: 10 | E37: 13 | F37: 8 | G37: 10
A38: Лук репчатый | D38: 10 | E38: 12 | F38: 8 | G38: 10
A39: Масло растительное | D39: 3 | E39: 5 | F39: 3 | G39: 5
A40: Вода | D40: 190 | E40: 196 | F40: 190 | G40: 196
A41: Сметана 15% | D41: 8 | E41: 10 | F41: 8 | G41: 10
A42: Курица в соусе с томатом | B42: 45/45 | C42: 100 | H42: 24.78 | I42: 34.22 | J42: 14.31 | K42: 16.44 | L42: 3.95 | M42: 4.19 | N42: 247.71 | O42: 304.62 | P42: 410
A43: Курица 1категории | D43: 130 | E43: 132 | F43: 94 | G43: 98
A44: Масло сливочное 72,5% | D44: 8.1 | E44: 9 | F44: 8.1 | G44: 9
A45: Лук репчатый | D45: 8.3 | E45: 9.3 | F45: 6.75 | G45: 7.5
A46: Томатное пюре (помидоры) | D46: 8.3 | E46: 9.3 | F46: 8.3 | G46: 9.3
A47: Мука (пшеничная) | D47: 0.002 | E47: 0.002 | F47: 0.002 | G47: 0.002
A48: Чеснок | D48: 0.002 | E48: 0.002 | F48: 0.001 | G48: 0.001
A49: Сметана 15% | D49: 5 | E49: 5 | F49: 5 | G49: 5
A50: Морковь | D50: 8.3 | E50: 9.3 | F50: 6.75 | G50: 7.5
A51: Вода | D51: 41.4 | E51: 46 | F51: 41.4 | G51: 46
A52: Макаронные изделия отварные с маслом | B52: 150/5 | C52: 180/5 | H52: 5.55 | I52: 6.65 | J52: 4.21 | K52: 4.32 | L52: 36.64 | M52: 43.95 | N52: 211.66 | O52: 247.38 | P52: 197
A53: Макаронные изделия высшего сорта | D53: 53 | E53: 63.6 | F53: 53 | G53: 63
A54: Масло сливочное 72,5% | D54: 5 | E54: 5 | F54: 5 | G54: 5
A55: Чай с сахаром | B55: 200 | C55: 200 | L55: 9.98 | M55: 9.98 | N55: 39.92 | O55: 39.92 | P55: 258
A56: Чай | D56: 0.4 | E56: 0.4 | F56: 0.4 | G56: 0.4
A57: Вода | D57: 200 | E57: 200 | F57: 200 | G57: 200
A58: Сахар-песок | D58: 10 | E58: 10 | F58: 10 | G58: 10
A59: Хлеб пшеничный обогащенный витаминами для детского питания | B59: 30 | C59: 50 | H59: 2.43 | I59: 4.05 | J59: 0.3 | K59: 0.5 | L59: 14.64 | M59: 24.4 | N59: 72.6 | O59: 121 | P59: 114 (1)
A60: Хлеб ржано-пшеничный для детского питания | B60: 40 | C60: 40 | H60: 0.93 | I60: 0.93 | J60: 0.3 | K60: 0.3 | L60: 2.93 | M60: 2.93 | N60: 17.4 | O60: 17.4 | P60: 2
A61: Итого за обед | B61: 725/60 | C61: 880/15 | H61: =SUM(H30:H60) -> 36.36 | I61: 48.99 | J61: 28.98 | K61: 33.26 | L61: 81.28 | M61: 100.32 | N61: 741.92 | O61: 902.37
A62: Итого за день | H62: =SUM(H61,H28) -> 53.79 | I62: =SUM(I61,I28) -> 67.85 | J62: =SUM(J28+J61) -> 40.36 | K62: 46.71 | L62: 145.74 | M62: 175.08 | N62: 1245.41 | O62: 1484.97
A64: День: вторник
A65: Неделя: 1
A66: Наименование блюда | B66: Выход блюда, г | D66: Масса брутто | F66: Масса нетто или полуфабриката | H66: Пищевые вещества | N66: Энергетическая ценность, ккал | P66: № рецептуры
H67: Белки | J67: Жиры | L67: Углеводы
B68: 7-11 лет | C68: 11-18 лет | D68: 7-11 лет | E68: 11-18 лет | F68: 7-11 лет | G68: 11-18 лет | H68: 7-11 лет | I68: 11-18 лет | J68: 7-11 лет | K68: 11-18 лет | L68: 7-11 лет | M68: 11-18 лет | N68: 7-11 лет | O68: 11-18 лет
A69: Завтрак
A70: Каша манная молочная | B70: 180 | C70: 200 | H70: 4.39 | I70: 6.24 | J70: 7.46 | K70: 8.1 | L70: 20.11 | M70: 29.7 | N70: 166 | O70: 198.64 | P70: 98
A71: Крупа манная | D71: 20 | E71: 30 | F71: 20 | G71: 30
A72: Молоко 3.2% | D72: 135 | E72: 145 | F72: 135 | G72: 145
A73: соль йодированная | D73: 0.4 | E73: 0.5 | F73: 0.4 | G73: 0.5
A74: Сахар | D74: 5 | E74: 7 | F74: 5 | G74: 7
A75: Вода | D75: 17 | E75: 17 | F75: 17 | G75: 17
A76: Масло сливочное 72,5% | D76: 3 | E76: 4 | F76: 3 | G76: 4
A77: Круассан | B77: 50 | C77: 50 | H77: 4 | I77: 4 | J77: 15 | K77: 15 | L77: 30 | M77: 30 | N77: 100 | O77: 100
A78: Чай с лимоном | B78: 200 | C78: 200 | H78: 0.07 | I78: 0.07 | J78: 0.01 | K78: 0.01 | L78: 10.19 | M78: 10.19 | N78: 42.3 | O78: 42.3 | P78: 273
A79: Чай | D79: 0.4 | E79: 0.4 | F79: 0.4 | G79: 0.4
A80: Вода | D80: 183 | E80: 183 | F80: 183 | G80: 183
A81: Сахар | D81: 10 | E81: 10 | F81: 10 | G81: 10
A82: Лимон | D82: 7 | E82: 8 | F82: 7 | G82: 8
A83: Хлеб пшеничный обогащенный витаминами для детского питания | B83: 50 | C83: 50 | H83: 4.05 | I83: 4.05 | J83: 0.5 | K83: 0.5 | L83: 24.4 | M83: 24.4 | N83: 121 | O83: 121 | P83: 1
A84: Йогурт | B84: 100 | C84: 100 | H84: 3.2 | I84: 3.2 | J84: 2.5 | K84: 2.5 | L84: 16.0 | M84: 16 | N84: 99 | O84: 99 | P84: 476
A85: Итого за завтрак | B85: =SUM(B70:B84) -> 580 | C85: =SUM(C70:C84) -> 600 | H85: =SUM(H70:H84) -> 15.71 | I85: 17.56 | J85: 25.47 | K85: 26.11 | L85: 100.7 | M85: 110.29 | N85: 528.3 | O85: 560.94
A86: Обед
A87: Салат из моркови с яблоками | B87: 60 | C87: 100 | H87: 0.56 | I87: 0.93 | J87: 2.09 | K87: 4.14 | L87: 5.86 | M87: 9.44 | N87: 45.25 | O87: 80.08 | P87: 18
A88: Морковь | D88: 53 | E88: 88 | F88: 39 | G88: 65
A89: Яблоки | D89: 14 | E89: 23 | F89: 12 | G89: 2
A90: Сахар | D90: 1 | E90: 2 | F90: 1 | G90: 2
A91: Масло растительное | D91: 2 | E91: 4 | F91: 2 | G91: 4
A92: Кислота лимонная | D92: 0.2 | E92: 0.3 | F92: 0.2 | G92: 0.3
A93: Вода | D93: 6 | E93: 10 | F93: 6 | G93: 10
A94: Сахар | D94: 1 | E94: 1 | F94: 1 | G94: 1
A95: Соль йодированная | D95: 1 | E95: 1 | F95: 1 | G95: 1
A96: Суп картофельный с горохом и гренками | B96: 265 | C96: 265 | H96: 7.85 | I96: 7.85 | J96: 4.42 | K96: 4.42 | L96: 31.14 | M96: 31.14 | N96: 196.4 | O96: 196.4 | P96: 59
A97: Картофель | D97: 84 | E97: 84 | F97: 50 | G97: 50
A98: Лук репчатый | D98: 12 | E98: 12 | F98: 10 | G98: 10
A99: Морковь | D99: 16 | E99: 16 | F99: 13 | G99: 13
A100: Масло сливочное 72,5% | D100: 5 | E100: 5 | F100: 5 | G100: 5
A101: Горох лущёный | D101: 20.2 | E101: 20.2 | F101: 20 | G101: 20
A102: Вода | D102: 180 | E102: 180 | F102: 180 | G102: 180
A103: Хлеб пшеничный | D103: 29 | E103: 29 | F103: 0.024 | G103: 0.024
A104: Рагу овощное с отварным мясом | B104: 35/125 | C104: 45/155 | H104: 12.96 | I104: 16.46 | J104: 15.2 | K104: 17.8 | L104: 12.02 | M104: 16.16 | N104: 237.8 | O104: 288.19 | P104: 118
A105: Говядина 1категории | D105: 60.9 | E105: 96.731 | F105: 58.7 | G105: 71.8
A106: Картофель | D106: 65 | E106: 84.8 | F106: 65 | G106: 49.1
A107: Морковь | D107: 32 | E107: 40 | F107: 24 | G107: 30
A108: Лук репчатый | D108: 12.9 | E108: 16.3 | F108: 10.8 | G108: 13.6
A109: капуста белокочанная | D109: 28.1 | E109: 35.3 | F109: 22.5 | G109: 28.2
A110: Масло растительное | D110: 5.1 | E110: 6.4 | F110: 5.1 | G110: 6.4
A111: Бульон мясной№115 | D111: 35 | E111: 42.5 | F111: 35 | G111: 42.5
A112: Масло сливочное 72,5% | D112: 2.1 | E112: 2.1 | F112: 2.1 | G112: 2.1
A113: Мука (пшеничная) | D113: 0.002 | E113: 0.002 | F113: 0.0021 | G113: 0.0021
A114: Морковь | D114: 2.9 | E114: 3.8 | F114: 2.8 | G114: 2.8
A115: Лук репчатый | D115: 0.8 | E115: 1.1 | F115: 0.8 | G115: 0.9
A116: Томат-паста | D116: 3.7 | E116: 4.7 | F116: 3.7 | G116: 4.7
A117: Масло сливочное 72,5% | D117: 0.8 | E117: 1 | F117: 0.8 | G117: 0.7
A118: Сахар | D118: 0.5 | E118: 0.5 | F118: 0.5 | G118: 0.5
A119: Витаминизированный кисель | B119: 200 | C119: 200 | L119: 23.5 | M119: 23.5 | N119: 95 | O119: 95 | P119: 305.11
A120: Кисель с витаминами "Витошка" | D120: 25 | E120: 25 | F120: 25 | G120: 25
A121: Вода | D121: 200 | E121: 200 | F121: 200 | G121: 200
A122: Хлеб пшеничный обогащенный витаминами для детского питания | B122: 30 | C122: 50 | H122: 2.43 | I122: 4.05 | J122: 0.3 | K122: 0.5 | L122: 14.64 | M122: 24.4 | N122: 72.6 | O122: 121 | P122: 114 (1)
A123: Хлеб ржано-пшеничный для детского питания | B123: 40 | C123: 40 | H123: 0.93 | I123: 0.93 | J123: 0.3 | K123: 0.3 | L123: 2.93 | M123: 2.93 | N123: 17.4 | O123: 17.4 | P123: 2
A124: Итого за обед | B124: 35/720 | C124: 45/810 | H124: =SUM(H87:H123) -> 24.73 | I124: 30.22 | J124: 22.31 | K124: 27.16 | L124: 90.09 | M124: 107.57 | N124: 664.45 | O124: 798.07
A125: Итого за день | H125: =SUM(H85+H124) -> 40.44 | I125: 47.78 | J125: 47.78 | K125: 53.27 | L125: 190.79 | M125: 217.86 | N125: 1192.75 | O125: 1359.01
A127: День: среда
A128: Неделя: 1
A129: Наименование блюда | B129: Выход блюда, г | D129: Масса брутто | F129: Масса нетто или полуфабриката | H129: Пищевые вещества | N129: Энергетическая ценность, ккал | P129: № рецептуры
H130: Белки | J130: Жиры | L130: Углеводы
B131: 7-11 лет | C131: 11-18 лет | D131: 7-11 лет | E131: 11-18 лет | F131: 7-11 лет | G131: 11-18 лет | H131: 7-11 лет | I131: 11-18 лет | J131: 7-11 лет | K131: 11-18 лет | L131: 7-11 лет | M131: 11-18 лет | N131: 7-11 лет | O131: 11-18 лет
A132: Завтрак
A133: Котлеты или биточки мясные из говядины с томатным соусом | B133: 60/40 | C133: 60/40 | H133: 9.97 | I133: 9.97 | J133: 11.9 | K133: 11.9 | L133: 8.87 | M133: 8.87 | N133: 182.53 | O133: 182.53 | P133: 445.3
A134: Масса полуфабриката | F134: 74.4 | G134: 74.4
A135: Масло растительное | D135: 3.6 | E135: 3.6 | F135: 3.6 | G135: 3.6
A136: Масса готовых котлет или биточков | F136: 60 | G136: 60
A137: Мука пшеничная в/с | D137: 1.8 | E137: 1.8 | F137: 1.8 | G137: 1.8
A138: Томат-паста | D138: 4 | E138: 4 | F138: 4 | G138: 4
A139: Лук репчатый | D139: 1 | E139: 1 | F139: 1 | G139: 1
A140: Морковь | F140: 2.4 | G140: 2.4
A141: с 01.01 (25%) | D141: 3.2 | E141: 3.2 | F141: - | G141: -
A142: с 01.09 (20%) | D142: 3 | E142: 3 | F142: - | G142: -
A143: Соль йодированная | D143: 0.6 | E143: 0.6 | F143: 0.6 | G143: 0.6
A144: Масло растительное | D144: 0.6 | E144: 0.6 | F144: 0.6 | G144: 0.6
A145: Масса соуса томатного | F145: 40 | G145: 40
A146: Картофельное пюре | B146: 180 | C146: 200 | H146: 4.54 | I146: 5.05 | J146: 5.85 | K146: 6.48 | L146: 20.51 | M146: 22.7 | N146: 150.11 | O146: 166.29 | P146: 133
A147: Картофель молодой | D147: 258 | E147: 284 | F147: 154.5 | G147: 170.6
A148: Молоко 3,2% | D148: 29 | E148: 32 | F148: 27 | G148: 31
A149: Масло сливочное 72,5% | D149: 6 | E149: 6.6 | F149: 6 | G149: 6.6
A150: Соль йодированная | D150: 0.6 | E150: 0.7 | F150: 0.6 | G150: 0.7
A151: Какао с молоком | B151: 200 | C151: 200 | H151: 3.87 | I151: 3.87 | J151: 3.8 | K151: 3.8 | L151: 20.08 | M151: 20.08 | N151: 131.41 | O151: 131.41 | P151: 200
A152: Какао Гост 108-2014 | D152: 0.004 | E152: 0.004 | F152: 0.004 | G152: 0.004
A153: Вода | D153: 110 | E153: 110 | F153: 110 | G153: 110
A154: Молоко 3,2% | D154: 100 | E154: 100 | F154: 100 | G154: 100
A155: Сахар | D155: 15 | E155: 15 | F155: 15 | G155: 15
A156: Хлеб пшеничный обогащенный витаминами для детского питания | B156: 30 | C156: 50 | H156: 2.43 | I156: 4.05 | J156: 0.3 | K156: 0.5 | L156: 14.64 | M156: 24.4 | N156: 72.6 | O156: 121 | P156: 114 (1)
A157: Итого за завтрак | B157: 470/40 | C157: 510/40 | H157: =SUM(H133:H156) -> 20.81 | I157: 22.94 | J157: 21.85 | K157: 22.68 | L157: 64.1 | M157: 76.05 | N157: 536.65 | O157: 601.23
A158: Обед
A159: Винегрет овощной | B159: 60 | C159: 100 | H159: 0.81 | I159: 1.35 | J159: 3.7 | K159: 6.16 | L159: 4.61 | M159: 7.69 | N159: 54.96 | O159: 91.6 | P159: 45
A160: Картофель | D160: 25.8 | E160: 43 | F160: 15 | G160: 25
A161: Свекла | D161: 16.3 | E161: 27.2 | F161: 12 | G161: 20
A162: Морковь | D162: 12.1 | E162: 20.1 | F162: 9 | G162: 15
A163: Огурцы соленые | D163: 15 | E163: 25 | F163: 12 | G163: 20
A164: Лук репчатый | D164: 10.7 | E164: 17.9 | F164: 9 | G164: 15
A165: Масло растительное | D165: 3.6 | E165: 6 | F165: 3.6 | G165: 6
A166: Суп картофельный с клецками | B166: 250 | C166: 250 | H166: 2.67 | I166: 2.67 | J166: 4.26 | K166: 4.26 | L166: 13.63 | M166: 13.63 | N166: 102.25 | O166: 102.25 | P166: 58
A167: Картофель молодой | D167: 125 | E167: 125 | F167: 75 | G167: 75
A168: Лук репчатый | D168: 13 | E168: 13 | F168: 1 | G168: 1
A169: Морковь | D169: 12 | E169: 12 | F169: 1 | G169: 1
A170: Масло растительное | D170: 3 | E170: 3 | F170: 3 | G170: 3
A171: Мука (пшеничная) | D171: 4 | E171: 4 | F171: 4 | G171: 4
A172: Масло сливочное 72,5% | D172: 1 | E172: 1 | F172: 1 | G172: 1
A173: Яйцо куриное ОС | D173: 1 | E173: 1 | F173: 1 | G173: 1
A174: Вода | D174: 5 | E174: 5 | F174: 5 | G174: 5
A175: Соль йодированная | D175: 1 | E175: 1 | F175: 1 | G175: 1
A176: Гуляш | B176: 45/45 | C176: 45/45 | H176: 14.54 | I176: 14.54 | J176: 15.16 | K176: 15.16 | L176: 4.06 | M176: 4.06 | N176: 210.55 | O176: 210.55 | P176: 93
A177: Говядина 1категории | D177: 99 | E177: 99 | F177: 99 | G177: 99
A178: Морковь | D178: 3 | E178: 3 | F178: 3 | G178: 3
A179: Лук репчатый | D179: 3 | E179: 3 | F179: 3 | G179: 3
A180: Томат-паста | D180: 2.7 | E180: 2.7 | F180: 2.7 | G180: 2.7
A181: Масло растительное | D181: 6 | E181: 6 | F181: 6 | G181: 6
A182: Мука (пшеничная) | D182: 0.003 | E182: 0.003 | F182: 0.003 | G182: 0.003
A183: Морковь | D183: 11 | E183: 11 | F183: 11 | G183: 11
A184: Лук репчатый | D184: 9 | E184: 9 | F184: 9 | G184: 9
A185: Каша гречневая вязкая с маслом | B185: 150/5 | C185: 180/5 | H185: 4.83 | I185: 5.71 | J185: 4.88 | K185: 5.11 | L185: 21.76 | M185: 25.76 | N185: 150.09 | O185: 171.65 | P185: 170(177)
A186: Крупа гречневая | D186: 38 | E186: 45 | F186: 38 | G186: 45
A187: Вода | D187: 120 | E187: 160 | F187: 120 | G187: 160
A188: Масло сливочное 72,5% | D188: 5 | E188: 5 | F188: 5 | G188: 5
A189: Соль йодированная | D189: 0.7 | E189: 0.7 | F189: 0.7 | G189: 0.7
A190: Чай с сахаром | B190: 200 | C190: 200 | L190: 9.98 | M190: 9.98 | N190: 39.92 | O190: 39.92 | P190: 258
A191: Чай | D191: 0.4 | E191: 0.4 | F191: 0.4 | G191: 0.4
A192: Вода | D192: 200 | E192: 200 | F192: 200 | G192: 200
A193: Сахар-песок | D193: 10 | E193: 10 | F193: 10 | G193: 10
A194: Хлеб пшеничный обогащенный витаминами для детского питания | B194: 30 | C194: 50 | H194: 2.43 | I194: 4.05 | J194: 0.3 | K194: 0.5 | L194: 14.64 | M194: 24.4 | N194: 72.6 | O194: 121 | P194: 114 (1)
A195: Хлеб ржано-пшеничный для детского питания | B195: 40 | C195: 40 | H195: 0.93 | I195: 0.93 | J195: 0.3 | K195: 0.3 | L195: 2.93 | M195: 2.93 | N195: 17.4 | O195: 17.4 | P195: 2
A196: Итого за обед | B196: 775/50 | C196: 865/50 | H196: =SUM(H159:H195) -> 26.21 | I196: 29.25 | J196: 28.6 | K196: 31.49 | L196: 71.61 | M196: 88.45 | N196: 647.77 | O196: 754.37
A197: Итого за день | H197: =SUM(H157+H196) -> 47.02 | I197: 52.19 | J197: 50.45 | K197: 54.17 | L197: 135.71 | M197: 164.5 | N197: 1184.42 | O197: 1355.6
A199: День: четверг
A200: Неделя: 1
A201: Наименование блюда | B201: Выход блюда, г | D201: Масса брутто | F201: Масса нетто или полуфабриката | H201: Пищевые вещества | N201: Энергетическая ценность, ккал | P201: № рецептуры
H202: Белки | J202: Жиры | L202: Углеводы
B203: 7-11 лет | C203: 11-18 лет | D203: 7-11 лет | E203: 11-18 лет | F203: 7-11 лет | G203: 11-18 лет | H203: 7-11 лет | I203: 11-18 лет | J203: 7-11 лет | K203: 11-18 лет | L203: 7-11 лет | M203: 11-18 лет | N203: 7-11 лет | O203: 11-18 лет
A204: Завтрак
A205: Макаронные изделия отварные с отварными сосисками | B205: 155 | C205: 185 | H205: 5.55 | I205: 6.65 | J205: 4.21 | K205: 4.32 | L205: 36.64 | M205: 43.95 | N205: 210.5 | O205: 247.38 | P205: 197
... 419 more rows
